[Event "Titled Tuesday Blitz November 07 Late 2023"]
[White "Ehlvest, Jaan"]
[Black "Mikaelyan, Arman"]
[WhiteFideId "4500016"]
[BlackFideId "13304852"]
[WhiteElo "2644"]
[BlackElo "2856"]
[Result "0-1"]
[Round "5"]
[TimeControl "180+1"]
[Date "2023.11.07"]
[WhiteClock "0:00:37"]
[BlackClock "0:00:10"]
[Board "29"]

1. e4 {[%clk 0:03:00]}  e5 {[%clk 0:02:58]} 2. Nf3 {[%clk 0:02:58]}  Nc6 {[%clk 0:02:58]} 3. Bb5 {[%clk 0:02:58]}  a6 {[%clk 0:02:58]} 4. Ba4 {[%clk 0:02:58]}  Nf6 {[%clk 0:02:58]} 5. O-O {[%clk 0:02:58]}  Be7 {[%clk 0:02:59]} 6. Re1 {[%clk 0:02:57]}  b5 {[%clk 0:02:59]} 7. Bb3 {[%clk 0:02:57]}  O-O {[%clk 0:03:00]} 8. c3 {[%clk 0:02:55]}  d5 {[%clk 0:02:59]} 9. exd5 {[%clk 0:02:55]}  Nxd5 {[%clk 0:03:00]} 10. d4 {[%clk 0:02:55]}  exd4 {[%clk 0:02:57]} 11. cxd4 {[%clk 0:02:55]}  Be6 {[%clk 0:02:28]} 12. Nc3 {[%clk 0:02:52]}  h6 {[%clk 0:02:02]} 13. Rxe6 {[%clk 0:02:44]}  fxe6 {[%clk 0:01:57]} 14. Qd3 {[%clk 0:02:44]}  Rxf3 {[%clk 0:01:39]} 15. Qxf3 {[%clk 0:02:35]}  Nxd4 {[%clk 0:01:38]} 16. Qg4 {[%clk 0:02:24]}  Nf6 {[%clk 0:01:22]} 17. Qh3 {[%clk 0:02:03]}  b4 {[%clk 0:01:07]} 18. Na4 {[%clk 0:01:50]}  Qd6 {[%clk 0:00:55]} 19. Be3 {[%clk 0:01:44]}  Nxb3 {[%clk 0:00:55]} 20. axb3 {[%clk 0:01:43]}  Qe5 {[%clk 0:00:54]} 21. Qf3 {[%clk 0:01:30]}  Qe4 {[%clk 0:00:49]} 22. Qxe4 {[%clk 0:01:12]}  Nxe4 {[%clk 0:00:50]} 23. Rc1 {[%clk 0:01:10]}  Bd6 {[%clk 0:00:24]} 24. Kf1 {[%clk 0:01:10]}  Rd8 {[%clk 0:00:21]} 25. Ke2 {[%clk 0:01:10]}  Kf7 {[%clk 0:00:20]} 26. f3 {[%clk 0:01:06]}  Nf6 {[%clk 0:00:20]} 27. g3 {[%clk 0:01:07]}  Nd5 {[%clk 0:00:20]} 28. Bc5 {[%clk 0:01:02]}  Be5 {[%clk 0:00:19]} 29. Rc4 {[%clk 0:01:00]}  a5 {[%clk 0:00:18]} 30. f4 {[%clk 0:01:00]}  Bf6 {[%clk 0:00:19]} 31. Bf2 {[%clk 0:00:57]}  g5 {[%clk 0:00:17]} 32. fxg5 {[%clk 0:00:55]}  hxg5 {[%clk 0:00:18]} 33. h4 {[%clk 0:00:54]}  gxh4 {[%clk 0:00:18]} 34. gxh4 {[%clk 0:00:55]}  Rh8 {[%clk 0:00:18]} 35. Nc5 {[%clk 0:00:50]}  Bxb2 {[%clk 0:00:15]} 36. Kf3 {[%clk 0:00:50]}  Bc3 {[%clk 0:00:12]} 37. Nb7 {[%clk 0:00:49]}  a4 {[%clk 0:00:12]} 38. bxa4 {[%clk 0:00:48]}  b3 {[%clk 0:00:12]} 39. Bd4 {[%clk 0:00:44]}  b2 {[%clk 0:00:10]} 40. Bxc3 {[%clk 0:00:43]}  b1=Q {[%clk 0:00:10]} 41. Bxh8 {[%clk 0:00:37]}  Qd3+ {[%clk 0:00:10]} 0-1


[Site "https://www.chess.com"]

[Event "Titled Tuesday Blitz November 07 Late 2023"]
[White "Seemann, Jakub"]
[Black "Vasquez Schroeder, Rodrigo"]
[WhiteFideId "21874697"]
[BlackFideId "3400042"]
[WhiteElo "2642"]
[BlackElo "2838"]
[Result "0-1"]
[Round "5"]
[TimeControl "180+1"]
[Date "2023.11.07"]
[WhiteClock "0:00:02"]
[BlackClock "0:01:05"]
[Board "31"]

1. c4 {[%clk 0:03:00]}  c5 {[%clk 0:02:54]} 2. Nf3 {[%clk 0:02:54]}  Nf6 {[%clk 0:02:50]} 3. g3 {[%clk 0:02:53]}  b6 {[%clk 0:02:49]} 4. Bg2 {[%clk 0:02:52]}  Bb7 {[%clk 0:02:50]} 5. O-O {[%clk 0:02:53]}  e6 {[%clk 0:02:50]} 6. Nc3 {[%clk 0:02:54]}  a6 {[%clk 0:02:45]} 7. d4 {[%clk 0:02:42]}  cxd4 {[%clk 0:02:44]} 8. Qxd4 {[%clk 0:02:43]}  d6 {[%clk 0:02:45]} 9. Rd1 {[%clk 0:02:42]}  Nbd7 {[%clk 0:02:45]} 10. b3 {[%clk 0:02:39]}  Be7 {[%clk 0:02:44]} 11. Bb2 {[%clk 0:02:39]}  O-O {[%clk 0:02:43]} 12. e4 {[%clk 0:02:35]}  Qc8 {[%clk 0:02:40]} 13. Rac1 {[%clk 0:02:33]}  Rd8 {[%clk 0:02:39]} 14. Qe3 {[%clk 0:02:31]}  Qc7 {[%clk 0:02:38]} 15. h3 {[%clk 0:02:30]}  Rac8 {[%clk 0:02:38]} 16. g4 {[%clk 0:02:21]}  h6 {[%clk 0:02:31]} 17. Nd4 {[%clk 0:02:17]}  g5 {[%clk 0:02:22]} 18. h4 {[%clk 0:01:29]}  Nh7 {[%clk 0:02:16]} 19. hxg5 {[%clk 0:00:49]}  hxg5 {[%clk 0:02:13]} 20. Bf3 {[%clk 0:00:44]}  Bf6 {[%clk 0:02:11]} 21. Kg2 {[%clk 0:00:43]}  Ne5 {[%clk 0:02:09]} 22. Be2 {[%clk 0:00:37]}  Ng6 {[%clk 0:02:08]} 23. Rh1 {[%clk 0:00:32]}  Nf4+ {[%clk 0:02:06]} 24. Kf1 {[%clk 0:00:33]}  Nf8 {[%clk 0:02:03]} 25. Bf3 {[%clk 0:00:20]}  N8g6 {[%clk 0:02:00]} 26. Nde2 {[%clk 0:00:14]}  Be5 {[%clk 0:01:59]} 27. Rh5 {[%clk 0:00:11]}  Nxh5 {[%clk 0:01:57]} 28. gxh5 {[%clk 0:00:12]}  Nf4 {[%clk 0:01:58]} 29. Nd1 {[%clk 0:00:09]}  Bxb2 {[%clk 0:01:56]} 30. Nxb2 {[%clk 0:00:09]}  Qc5 {[%clk 0:01:56]} 31. Nxf4 {[%clk 0:00:07]}  Qxe3 {[%clk 0:01:44]} 32. fxe3 {[%clk 0:00:08]}  gxf4 {[%clk 0:01:45]} 33. exf4 {[%clk 0:00:08]}  Kg7 {[%clk 0:01:39]} 34. Kf2 {[%clk 0:00:09]}  Kh6 {[%clk 0:01:39]} 35. Ke3 {[%clk 0:00:09]}  Rg8 {[%clk 0:01:38]} 36. Nd3 {[%clk 0:00:06]}  Rg3 {[%clk 0:01:36]} 37. Kf2 {[%clk 0:00:07]}  Rcg8 {[%clk 0:01:33]} 38. b4 {[%clk 0:00:04]}  f5 {[%clk 0:01:33]} 39. Re1 {[%clk 0:00:04]}  Rxf3+ {[%clk 0:01:31]} 40. Kxf3 {[%clk 0:00:04]}  fxe4+ {[%clk 0:01:31]} 41. Rxe4 {[%clk 0:00:05]}  Kxh5 {[%clk 0:01:30]} 42. Ke3 {[%clk 0:00:05]}  Rg3+ {[%clk 0:01:28]} 43. Kd4 {[%clk 0:00:05]}  Bxe4 {[%clk 0:01:25]} 44. Kxe4 {[%clk 0:00:06]}  Kg4 {[%clk 0:01:22]} 45. c5 {[%clk 0:00:06]}  bxc5 {[%clk 0:01:22]} 46. bxc5 {[%clk 0:00:07]}  dxc5 {[%clk 0:01:17]} 47. Nxc5 {[%clk 0:00:07]}  Ra3 {[%clk 0:01:17]} 48. Nxe6 {[%clk 0:00:07]}  Rxa2 {[%clk 0:01:15]} 49. f5 {[%clk 0:00:05]}  Ra4+ {[%clk 0:01:14]} 50. Ke5 {[%clk 0:00:03]}  Ra5+ {[%clk 0:01:13]} 51. Kd4 {[%clk 0:00:04]}  Rxf5 {[%clk 0:01:13]} 52. Nc5 {[%clk 0:00:05]}  a5 {[%clk 0:01:13]} 53. Kc4 {[%clk 0:00:05]}  Kf4 {[%clk 0:01:11]} 54. Kb5 {[%clk 0:00:04]}  Ke3 {[%clk 0:01:11]} 55. Kc4 {[%clk 0:00:05]}  Rg5 {[%clk 0:01:11]} 56. Nb3 {[%clk 0:00:04]}  a4 {[%clk 0:01:10]} 57. Nc1 {[%clk 0:00:02]}  Kd2 {[%clk 0:01:08]} 58. Na2 {[%clk 0:00:03]}  Kc2 {[%clk 0:01:07]} 59. Nb4+ {[%clk 0:00:04]}  Kb2 {[%clk 0:01:07]} 60. Nd3+ {[%clk 0:00:05]}  Ka3 {[%clk 0:01:07]} 61. Nc1 {[%clk 0:00:03]}  Rg3 {[%clk 0:01:06]} 62. Nd3 {[%clk 0:00:01]}  Rxd3 {[%clk 0:01:05]} 63. Kxd3 {[%clk 0:00:02]} 0-1


[Site "https://www.chess.com"]

[Event "Titled Tuesday Blitz November 07 Late 2023"]
[White "Zakhartsov, Vladimir"]
[Black "Aarav Dengla"]
[WhiteFideId "4145097"]
[BlackFideId "45059756"]
[WhiteElo "2830"]
[BlackElo "2636"]
[Result "0-1"]
[Round "5"]
[TimeControl "180+1"]
[Date "2023.11.07"]
[WhiteClock "0:00:00"]
[BlackClock "0:00:10"]
[Board "32"]

1. d4 {[%clk 0:02:56]}  d5 {[%clk 0:02:59]} 2. c4 {[%clk 0:02:55]}  e6 {[%clk 0:02:59]} 3. Nc3 {[%clk 0:02:55]}  a6 {[%clk 0:02:59]} 4. cxd5 {[%clk 0:02:41]}  exd5 {[%clk 0:03:00]} 5. Bf4 {[%clk 0:02:37]}  h6 {[%clk 0:02:56]} 6. Nf3 {[%clk 0:02:28]}  Nf6 {[%clk 0:02:54]} 7. e3 {[%clk 0:02:28]}  Bd6 {[%clk 0:02:52]} 8. Be5 {[%clk 0:02:27]}  c6 {[%clk 0:02:52]} 9. Bd3 {[%clk 0:02:27]}  O-O {[%clk 0:02:52]} 10. h3 {[%clk 0:02:27]}  Re8 {[%clk 0:02:52]} 11. O-O {[%clk 0:02:26]}  Bxe5 {[%clk 0:02:52]} 12. Nxe5 {[%clk 0:02:25]}  c5 {[%clk 0:02:52]} 13. Rc1 {[%clk 0:02:19]}  b5 {[%clk 0:02:50]} 14. Bb1 {[%clk 0:02:15]}  c4 {[%clk 0:02:48]} 15. f4 {[%clk 0:02:15]}  Nbd7 {[%clk 0:02:48]} 16. g4 {[%clk 0:02:11]}  b4 {[%clk 0:02:48]} 17. Ne2 {[%clk 0:02:10]}  Nh7 {[%clk 0:02:42]} 18. Bxh7+ {[%clk 0:01:55]}  Kxh7 {[%clk 0:02:34]} 19. Nxf7 {[%clk 0:01:55]}  Qh4 {[%clk 0:02:32]} 20. Rf3 {[%clk 0:01:55]}  Nf6 {[%clk 0:02:29]} 21. Ne5 {[%clk 0:01:54]}  Ne4 {[%clk 0:02:13]} 22. Qe1 {[%clk 0:01:30]}  Qxe1+ {[%clk 0:01:56]} 23. Rxe1 {[%clk 0:01:31]}  a5 {[%clk 0:01:53]} 24. f5 {[%clk 0:01:29]}  Ng5 {[%clk 0:01:50]} 25. Rg3 {[%clk 0:01:28]}  Ne4 {[%clk 0:01:50]} 26. Rg2 {[%clk 0:01:28]}  Ba6 {[%clk 0:01:50]} 27. Nf4 {[%clk 0:01:28]}  Bb7 {[%clk 0:01:36]} 28. h4 {[%clk 0:01:23]}  a4 {[%clk 0:01:24]} 29. g5 {[%clk 0:01:19]}  a3 {[%clk 0:01:23]} 30. Ne6 {[%clk 0:00:53]}  Re7 {[%clk 0:00:51]} 31. bxa3 {[%clk 0:00:48]}  Rxa3 {[%clk 0:00:45]} 32. gxh6 {[%clk 0:00:47]}  Kxh6 {[%clk 0:00:41]} 33. Rg6+ {[%clk 0:00:27]}  Kh7 {[%clk 0:00:30]} 34. Ng5+ {[%clk 0:00:24]}  Nxg5 {[%clk 0:00:21]} 35. hxg5 {[%clk 0:00:25]}  Bc8 {[%clk 0:00:21]} 36. f6 {[%clk 0:00:19]}  Rea7 {[%clk 0:00:18]} 37. Re2 {[%clk 0:00:15]}  c3 {[%clk 0:00:14]} 38. Rf2 {[%clk 0:00:07]}  Bf5 {[%clk 0:00:14]} 39. Rxf5 {[%clk 0:00:06]}  c2 {[%clk 0:00:14]} 40. Rf1 {[%clk 0:00:06]}  Rxa2 {[%clk 0:00:13]} 41. Rxg7+ {[%clk 0:00:03]}  Rxg7 {[%clk 0:00:12]} 42. g6+ {[%clk 0:00:02]}  Rxg6+ {[%clk 0:00:10]} 43. Nxg6 {[%clk 0:00:03]}  Kxg6 {[%clk 0:00:10]} 44. f7 {[%clk 0:00:00]}  c1=Q {[%clk 0:00:10]} 0-1


[Site "https://www.chess.com"]

[Event "Titled Tuesday Blitz November 07 Late 2023"]
[White "Sivakumar, Shaaketh"]
[Black "Szpar, Milosz"]
[WhiteFideId "30940176"]
[BlackFideId "1184989"]
[WhiteElo "2625"]
[BlackElo "2807"]
[Result "0-1"]
[Round "5"]
[TimeControl "180+1"]
[Date "2023.11.07"]
[WhiteClock "0:00:00"]
[BlackClock "0:00:06"]
[Board "36"]

1. e4 {[%clk 0:03:00]}  e6 {[%clk 0:02:59]} 2. d4 {[%clk 0:03:00]}  d5 {[%clk 0:03:00]} 3. Nd2 {[%clk 0:03:01]}  Be7 {[%clk 0:02:59]} 4. Ngf3 {[%clk 0:02:59]}  Nf6 {[%clk 0:02:59]} 5. Bd3 {[%clk 0:02:58]}  c5 {[%clk 0:02:59]} 6. e5 {[%clk 0:02:58]}  Nfd7 {[%clk 0:02:59]} 7. c3 {[%clk 0:02:58]}  Nc6 {[%clk 0:02:59]} 8. O-O {[%clk 0:02:56]}  a5 {[%clk 0:03:00]} 9. Qe2 {[%clk 0:02:52]}  cxd4 {[%clk 0:02:57]} 10. cxd4 {[%clk 0:02:51]}  Qb6 {[%clk 0:02:56]} 11. Qe3 {[%clk 0:02:49]}  Nb4 {[%clk 0:02:38]} 12. Bb1 {[%clk 0:02:46]}  Qc6 {[%clk 0:02:38]} 13. Qc3 {[%clk 0:02:33]}  b6 {[%clk 0:02:38]} 14. a3 {[%clk 0:02:29]}  Qxc3 {[%clk 0:02:38]} 15. bxc3 {[%clk 0:02:30]}  Nc6 {[%clk 0:02:38]} 16. Bd3 {[%clk 0:02:26]}  Ba6 {[%clk 0:02:38]} 17. Bxa6 {[%clk 0:02:25]}  Rxa6 {[%clk 0:02:39]} 18. c4 {[%clk 0:02:25]}  dxc4 {[%clk 0:02:38]} 19. Nxc4 {[%clk 0:02:26]}  b5 {[%clk 0:02:37]} 20. Ne3 {[%clk 0:02:25]}  O-O {[%clk 0:02:30]} 21. Bb2 {[%clk 0:02:25]}  Rb8 {[%clk 0:02:24]} 22. d5 {[%clk 0:02:25]}  exd5 {[%clk 0:02:23]} 23. Nxd5 {[%clk 0:02:25]}  Bf8 {[%clk 0:02:20]} 24. Rfd1 {[%clk 0:02:21]}  Nc5 {[%clk 0:02:17]} 25. Rac1 {[%clk 0:02:17]}  Na4 {[%clk 0:02:11]} 26. Ba1 {[%clk 0:01:58]}  Bxa3 {[%clk 0:02:09]} 27. Rc2 {[%clk 0:01:59]}  Nb4 {[%clk 0:01:58]} 28. Rc7 {[%clk 0:01:57]}  Nxd5 {[%clk 0:01:49]} 29. Rxd5 {[%clk 0:01:58]}  Nc5 {[%clk 0:01:23]} 30. Ng5 {[%clk 0:01:49]}  Ne6 {[%clk 0:01:21]} 31. Nxe6 {[%clk 0:01:45]}  fxe6 {[%clk 0:01:22]} 32. Rdd7 {[%clk 0:01:44]}  Bf8 {[%clk 0:01:23]} 33. Bd4 {[%clk 0:01:26]}  Raa8 {[%clk 0:00:54]} 34. Bc5 {[%clk 0:01:14]}  Rd8 {[%clk 0:00:44]} 35. Rxd8 {[%clk 0:00:12]}  Rxd8 {[%clk 0:00:43]} 36. f4 {[%clk 0:00:12]}  Bxc5+ {[%clk 0:00:20]} 37. Rxc5 {[%clk 0:00:13]}  Rb8 {[%clk 0:00:17]} 38. Kf2 {[%clk 0:00:06]}  a4 {[%clk 0:00:18]} 39. Ke3 {[%clk 0:00:02]}  a3 {[%clk 0:00:14]} 40. Kd2 {[%clk 0:00:03]}  a2 {[%clk 0:00:10]} 41. Rc1 {[%clk 0:00:03]}  Rd8+ {[%clk 0:00:08]} 42. Ke2 {[%clk 0:00:03]}  b4 {[%clk 0:00:08]} 43. f5 {[%clk 0:00:03]}  exf5 {[%clk 0:00:08]} 44. e6 {[%clk 0:00:02]}  Kf8 {[%clk 0:00:07]} 45. Rd1 {[%clk 0:00:00]}  Rxd1 {[%clk 0:00:06]} 0-1


[Site "https://www.chess.com"]

[Event "Titled Tuesday Blitz November 07 Late 2023"]
[White "Lima, Kleyton Alcantara"]
[Black "Bordi, Kevin"]
[WhiteFideId "22718397"]
[BlackFideId "621862"]
[WhiteElo "2543"]
[BlackElo "2796"]
[Result "1-0"]
[Round "5"]
[TimeControl "180+1"]
[Date "2023.11.07"]
[WhiteClock "0:00:14"]
[BlackClock "0:00:00"]
[Board "38"]

1. e4 {[%clk 0:02:59]}  d5 {[%clk 0:03:00]} 2. exd5 {[%clk 0:02:58]}  Qxd5 {[%clk 0:03:01]} 3. Nc3 {[%clk 0:02:59]}  Qa5 {[%clk 0:03:01]} 4. Bc4 {[%clk 0:02:59]}  Nf6 {[%clk 0:03:02]} 5. d3 {[%clk 0:02:59]}  c6 {[%clk 0:03:02]} 6. Ne2 {[%clk 0:02:59]}  e6 {[%clk 0:03:01]} 7. O-O {[%clk 0:02:57]}  b5 {[%clk 0:03:01]} 8. Bb3 {[%clk 0:02:57]}  Bd6 {[%clk 0:03:01]} 9. Ne4 {[%clk 0:02:54]}  Nxe4 {[%clk 0:03:00]} 10. dxe4 {[%clk 0:02:55]}  Qc7 {[%clk 0:03:01]} 11. h3 {[%clk 0:02:51]}  Nd7 {[%clk 0:03:00]} 12. Be3 {[%clk 0:02:46]}  Nc5 {[%clk 0:02:57]} 13. e5 {[%clk 0:02:37]}  Be7 {[%clk 0:02:57]} 14. f4 {[%clk 0:02:22]}  Bb7 {[%clk 0:02:52]} 15. Nd4 {[%clk 0:02:10]}  O-O-O {[%clk 0:02:48]} 16. Qe2 {[%clk 0:01:54]}  g5 {[%clk 0:02:40]} 17. fxg5 {[%clk 0:01:49]}  Qxe5 {[%clk 0:02:34]} 18. Rxf7 {[%clk 0:01:49]}  Rxd4 {[%clk 0:01:58]} 19. Rxe7 {[%clk 0:01:48]}  Re4 {[%clk 0:01:39]} 20. Re1 {[%clk 0:01:41]}  Rf8 {[%clk 0:01:20]} 21. c4 {[%clk 0:01:19]}  Nxb3 {[%clk 0:01:19]} 22. axb3 {[%clk 0:01:20]}  bxc4 {[%clk 0:01:06]} 23. bxc4 {[%clk 0:01:21]}  c5 {[%clk 0:01:06]} 24. Qd2 {[%clk 0:01:14]}  Rd8 {[%clk 0:01:03]} 25. Qf2 {[%clk 0:01:08]}  Kb8 {[%clk 0:00:45]} 26. Rxh7 {[%clk 0:00:46]}  Ka8 {[%clk 0:00:33]} 27. Qf7 {[%clk 0:00:43]}  Qxb2 {[%clk 0:00:20]} 28. Re2 {[%clk 0:00:32]}  Qa1+ {[%clk 0:00:08]} 29. Kh2 {[%clk 0:00:32]}  Qe5+ {[%clk 0:00:08]} 30. Kg1 {[%clk 0:00:29]}  Rb8 {[%clk 0:00:08]} 31. Qc7 {[%clk 0:00:26]}  Qa1+ {[%clk 0:00:05]} 32. Kh2 {[%clk 0:00:25]}  Qf1 {[%clk 0:00:05]} 33. Rf2 {[%clk 0:00:20]}  Qxc4 {[%clk 0:00:00]} 34. Rf8 {[%clk 0:00:14]} 1-0


[Site "https://www.chess.com"]

[Event "Titled Tuesday Blitz November 07 Late 2023"]
[White "Sokolovsky, Yahli"]
[Black "a-z30"]
[WhiteFideId "2820242"]
[WhiteElo "2780"]
[BlackElo "2541"]
[Result "1-0"]
[Round "5"]
[TimeControl "180+1"]
[Date "2023.11.07"]
[WhiteClock "0:00:06"]
[BlackClock "0:00:00"]
[Board "39"]

1. b3 {[%clk 0:03:00]}  Nf6 {[%clk 0:02:57]} 2. Bb2 {[%clk 0:03:01]}  g6 {[%clk 0:02:57]} 3. c4 {[%clk 0:03:01]}  Bg7 {[%clk 0:02:57]} 4. g3 {[%clk 0:03:01]}  O-O {[%clk 0:02:57]} 5. Bg2 {[%clk 0:03:02]}  c5 {[%clk 0:02:52]} 6. Nf3 {[%clk 0:03:01]}  Nc6 {[%clk 0:02:52]} 7. d4 {[%clk 0:02:56]}  d6 {[%clk 0:02:35]} 8. d5 {[%clk 0:02:55]}  Na5 {[%clk 0:02:24]} 9. O-O {[%clk 0:02:44]}  a6 {[%clk 0:02:24]} 10. Qe1 {[%clk 0:02:33]}  b5 {[%clk 0:02:15]} 11. Bc3 {[%clk 0:02:33]}  b4 {[%clk 0:01:51]} 12. Bb2 {[%clk 0:02:33]}  Nb7 {[%clk 0:01:52]} 13. e4 {[%clk 0:02:32]}  a5 {[%clk 0:01:44]} 14. a4 {[%clk 0:02:32]}  bxa3 {[%clk 0:01:19]} 15. Rxa3 {[%clk 0:02:32]}  Bd7 {[%clk 0:01:15]} 16. Nc3 {[%clk 0:02:32]}  Ng4 {[%clk 0:01:12]} 17. Qd2 {[%clk 0:02:23]}  Ne5 {[%clk 0:01:11]} 18. Nxe5 {[%clk 0:02:21]}  Bxe5 {[%clk 0:01:10]} 19. f4 {[%clk 0:02:12]}  Bd4+ {[%clk 0:01:09]} 20. Kh1 {[%clk 0:02:13]}  Rb8 {[%clk 0:00:56]} 21. Rfa1 {[%clk 0:01:57]}  e5 {[%clk 0:00:55]} 22. f5 {[%clk 0:01:43]}  gxf5 {[%clk 0:00:50]} 23. exf5 {[%clk 0:01:44]}  Bxf5 {[%clk 0:00:49]} 24. Ne4 {[%clk 0:01:41]}  Bxb2 {[%clk 0:00:40]} 25. Qxb2 {[%clk 0:01:42]}  Bxe4 {[%clk 0:00:40]} 26. Bxe4 {[%clk 0:01:43]}  f5 {[%clk 0:00:40]} 27. Bg2 {[%clk 0:01:43]}  Qg5 {[%clk 0:00:39]} 28. Rf1 {[%clk 0:01:39]}  Rbe8 {[%clk 0:00:35]} 29. Raa1 {[%clk 0:01:34]}  e4 {[%clk 0:00:35]} 30. Rf4 {[%clk 0:01:32]}  Qf6 {[%clk 0:00:35]} 31. Qa2 {[%clk 0:01:27]}  e3 {[%clk 0:00:32]} 32. Rc1 {[%clk 0:01:10]}  Re5 {[%clk 0:00:21]} 33. Qe2 {[%clk 0:01:08]}  Qd8 {[%clk 0:00:13]} 34. Qd3 {[%clk 0:01:00]}  Qb6 {[%clk 0:00:11]} 35. Re1 {[%clk 0:01:01]}  Qb4 {[%clk 0:00:09]} 36. Rxe3 {[%clk 0:01:00]}  Rfe8 {[%clk 0:00:10]} 37. Rxe5 {[%clk 0:00:52]}  Rxe5 {[%clk 0:00:11]} 38. Rxf5 {[%clk 0:00:53]}  Rxf5 {[%clk 0:00:10]} 39. Qxf5 {[%clk 0:00:53]}  Qe1+ {[%clk 0:00:07]} 40. Bf1 {[%clk 0:00:45]}  Qe7 {[%clk 0:00:01]} 41. Bd3 {[%clk 0:00:41]}  Kg7 {[%clk 0:00:02]} 42. Qxh7+ {[%clk 0:00:41]}  Kf8 {[%clk 0:00:03]} 43. Qh8+ {[%clk 0:00:37]}  Kf7 {[%clk 0:00:03]} 44. Kg2 {[%clk 0:00:38]}  Nd8 {[%clk 0:00:01]} 45. h4 {[%clk 0:00:35]}  Qf6 {[%clk 0:00:02]} 46. Qh7+ {[%clk 0:00:33]}  Kf8 {[%clk 0:00:02]} 47. Bg6 {[%clk 0:00:31]}  Qb2+ {[%clk 0:00:02]} 48. Kh3 {[%clk 0:00:32]}  Qf6 {[%clk 0:00:02]} 49. h5 {[%clk 0:00:31]}  Qe5 {[%clk 0:00:02]} 50. Qd7 {[%clk 0:00:20]}  Qf6 {[%clk 0:00:01]} 51. Qg4 {[%clk 0:00:10]}  Kg8 {[%clk 0:00:02]} 52. h6 {[%clk 0:00:08]}  Kh8 {[%clk 0:00:02]} 53. Qh5 {[%clk 0:00:07]}  Qa1 {[%clk 0:00:02]} 54. Be4 {[%clk 0:00:06]}  Qf1+ {[%clk 0:00:02]} 55. Bg2 {[%clk 0:00:07]}  Qf6 {[%clk 0:00:02]} 56. Qe8+ {[%clk 0:00:07]}  Kh7 {[%clk 0:00:02]} 57. Be4+ {[%clk 0:00:06]}  Kxh6 {[%clk 0:00:00]} 58. Qg8 {[%clk 0:00:06]} 1-0


[Site "https://www.chess.com"]

[Event "Titled Tuesday Blitz November 07 Late 2023"]
[White "Krzyzanowski, Marcin"]
[Black "Kochiev, Ivan"]
[WhiteFideId "1132199"]
[BlackFideId "2917890"]
[WhiteElo "2761"]
[BlackElo "2514"]
[Result "1-0"]
[Round "5"]
[TimeControl "180+1"]
[Date "2023.11.07"]
[WhiteClock "0:00:03"]
[BlackClock "0:00:01"]
[Board "41"]

1. e4 {[%clk 0:03:00]}  c5 {[%clk 0:02:58]} 2. Nf3 {[%clk 0:03:00]}  d6 {[%clk 0:02:57]} 3. d4 {[%clk 0:03:00]}  cxd4 {[%clk 0:02:58]} 4. Nxd4 {[%clk 0:03:00]}  Nf6 {[%clk 0:02:57]} 5. Nc3 {[%clk 0:03:01]}  Nc6 {[%clk 0:02:58]} 6. Bg5 {[%clk 0:02:57]}  e6 {[%clk 0:02:58]} 7. Qd2 {[%clk 0:02:54]}  a6 {[%clk 0:02:58]} 8. Nxc6 {[%clk 0:02:53]}  bxc6 {[%clk 0:02:58]} 9. O-O-O {[%clk 0:02:53]}  Be7 {[%clk 0:02:58]} 10. Bxf6 {[%clk 0:02:47]}  gxf6 {[%clk 0:02:59]} 11. Bd3 {[%clk 0:02:44]}  Rb8 {[%clk 0:02:49]} 12. Rhe1 {[%clk 0:02:36]}  d5 {[%clk 0:02:38]} 13. exd5 {[%clk 0:02:00]}  cxd5 {[%clk 0:02:37]} 14. Qf4 {[%clk 0:01:59]}  Bd6 {[%clk 0:01:49]} 15. Qa4+ {[%clk 0:01:45]}  Kf8 {[%clk 0:01:35]} 16. Qh4 {[%clk 0:01:34]}  Rb4 {[%clk 0:01:17]} 17. Qh6+ {[%clk 0:01:31]}  Kg8 {[%clk 0:01:17]} 18. g3 {[%clk 0:01:09]}  Bf8 {[%clk 0:01:07]} 19. Qh5 {[%clk 0:01:04]}  Bg7 {[%clk 0:01:02]} 20. Bf5 {[%clk 0:00:51]}  Qf8 {[%clk 0:00:36]} 21. a3 {[%clk 0:00:50]}  Rb8 {[%clk 0:00:28]} 22. g4 {[%clk 0:00:21]}  Bh6+ {[%clk 0:00:24]} 23. Kb1 {[%clk 0:00:07]}  Qxa3 {[%clk 0:00:20]} 24. Na4 {[%clk 0:00:07]}  Bd7 {[%clk 0:00:09]} 25. Qxh6 {[%clk 0:00:03]}  Bxa4 {[%clk 0:00:07]} 26. Qc1 {[%clk 0:00:03]}  exf5 {[%clk 0:00:04]} 27. gxf5 {[%clk 0:00:04]}  Kf8 {[%clk 0:00:04]} 28. Rd4 {[%clk 0:00:03]}  Bc6 {[%clk 0:00:03]} 29. Qh6+ {[%clk 0:00:03]}  Kg8 {[%clk 0:00:03]} 30. Rg1+ {[%clk 0:00:04]}  Qg3 {[%clk 0:00:01]} 31. Rxg3# {[%clk 0:00:03]} 1-0


[Site "https://www.chess.com"]

[Event "Titled Tuesday Blitz November 07 Late 2023"]
[White "Suspenser17"]
[Black "Korchmar, Vasiliy"]
[BlackFideId "24131750"]
[WhiteElo "2437"]
[BlackElo "2753"]
[Result "0-1"]
[Round "5"]
[TimeControl "180+1"]
[Date "2023.11.07"]
[WhiteClock "0:00:00"]
[BlackClock "0:00:01"]
[Board "43"]

1. e4 {[%clk 0:03:00]}  c5 {[%clk 0:02:59]} 2. c3 {[%clk 0:03:00]}  d5 {[%clk 0:02:59]} 3. exd5 {[%clk 0:03:01]}  Nf6 {[%clk 0:03:00]} 4. Bb5+ {[%clk 0:03:00]}  Nbd7 {[%clk 0:02:56]} 5. d4 {[%clk 0:02:58]}  Nxd5 {[%clk 0:02:48]} 6. dxc5 {[%clk 0:02:54]}  e6 {[%clk 0:02:48]} 7. c6 {[%clk 0:02:44]}  bxc6 {[%clk 0:02:43]} 8. Bxc6 {[%clk 0:02:44]}  Rb8 {[%clk 0:02:43]} 9. Nf3 {[%clk 0:02:41]}  Ba6 {[%clk 0:02:42]} 10. Nbd2 {[%clk 0:02:29]}  Nf4 {[%clk 0:02:38]} 11. c4 {[%clk 0:01:36]}  Nd3+ {[%clk 0:02:05]} 12. Kf1 {[%clk 0:01:35]}  Bc5 {[%clk 0:01:17]} 13. Qe2 {[%clk 0:00:42]}  Nxf2 {[%clk 0:01:08]} 14. Ne5 {[%clk 0:00:40]}  Bc8 {[%clk 0:00:59]} 15. Rg1 {[%clk 0:00:27]}  O-O {[%clk 0:00:54]} 16. Nxd7 {[%clk 0:00:17]}  Bxd7 {[%clk 0:00:55]} 17. Bf3 {[%clk 0:00:17]}  Ng4 {[%clk 0:00:39]} 18. Bxg4 {[%clk 0:00:17]}  Bxg1 {[%clk 0:00:39]} 19. Kxg1 {[%clk 0:00:18]}  Bc6 {[%clk 0:00:38]} 20. Bf3 {[%clk 0:00:18]}  Qd4+ {[%clk 0:00:24]} 21. Kh1 {[%clk 0:00:16]}  Rfc8 {[%clk 0:00:24]} 22. h3 {[%clk 0:00:15]}  Bxf3 {[%clk 0:00:20]} 23. Qxf3 {[%clk 0:00:15]}  a5 {[%clk 0:00:17]} 24. Qe4 {[%clk 0:00:12]}  Qf6 {[%clk 0:00:16]} 25. Nf3 {[%clk 0:00:11]}  a4 {[%clk 0:00:15]} 26. Rb1 {[%clk 0:00:11]}  h6 {[%clk 0:00:10]} 27. b3 {[%clk 0:00:11]}  axb3 {[%clk 0:00:09]} 28. axb3 {[%clk 0:00:12]}  Ra8 {[%clk 0:00:10]} 29. Bb2 {[%clk 0:00:12]}  Qe7 {[%clk 0:00:06]} 30. Qe5 {[%clk 0:00:12]}  f6 {[%clk 0:00:06]} 31. Qe3 {[%clk 0:00:12]}  Ra2 {[%clk 0:00:05]} 32. Nd4 {[%clk 0:00:11]}  e5 {[%clk 0:00:04]} 33. Nf5 {[%clk 0:00:11]}  Qd7 {[%clk 0:00:04]} 34. Ng3 {[%clk 0:00:06]}  Rd8 {[%clk 0:00:03]} 35. Bc3 {[%clk 0:00:06]}  Qd3 {[%clk 0:00:03]} 36. Re1 {[%clk 0:00:04]}  Qc2 {[%clk 0:00:03]} 37. Qf3 {[%clk 0:00:04]}  Rd3 {[%clk 0:00:03]} 38. Qb7 {[%clk 0:00:00]}  Qxc3 {[%clk 0:00:01]} 0-1


[Site "https://www.chess.com"]